fUST/lending_fUST_20251113
["ID","MTS","AMOUNT","RATE_DAILY","PERIOD"]
[393806503,1763014248150,-151.0,0.00037015,14]
[393806504,1763014248160,-332.0,0.00037015,14]
[393806505,1763014248169,-151.0,0.00037015,14]
[393806506,1763014248179,-151.0,0.00037015,14]
[393806507,1763014248188,-332.0,0.00037015,14]
[393806508,1763014248197,-151.0,0.00037015,14]
[393806509,1763014248207,-332.0,0.00037015,14]
[393806510,1763014248217,-151.0,0.00037015,14]
[393806511,1763014248228,-151.0,0.00037015,14]
[393806512,1763014248237,-332.0,0.00037015,14]
[393806513,1763014248247,-151.0,0.00037015,14]
[393806514,1763014248257,-151.0,0.00037015,14]
[393806515,1763014248267,-151.0,0.00037015,14]
[393806516,1763014248276,-332.0,0.00037015,14]
[393806517,1763014248287,-151.0,0.00037015,14]
[393806518,1763014248297,-332.0,0.00037015,14]
[393806519,1763014248307,-151.0,0.00037015,14]
[393806520,1763014248316,-151.0,0.00037015,14]
[393806521,1763014248325,-332.0,0.00037015,14]
[393806522,1763014248335,-151.0,0.00037015,14]
[393806523,1763014248345,-151.0,0.00037015,14]
[393806524,1763014248354,-332.0,0.00037015,14]
[393806525,1763014248364,-151.0,0.00037015,14]
[393806526,1763014248374,-151.0,0.00037015,14]
[393806527,1763014248384,-332.0,0.00037015,14]
[393806528,1763014248394,-191.83685426,0.00037015,14]
[393806529,1763014248404,-332.0,0.00037015,14]
[393806530,1763014248413,-151.0,0.00037015,14]
[393806531,1763014248422,-151.0,0.00037015,14]
[393806532,1763014248433,-332.0,0.00037015,14]
[393806533,1763014248443,-332.0,0.00037015,14]
[393806534,1763014248452,-151.0,0.00037015,14]
[393806535,1763014248462,-332.0,0.00037015,14]
[393806536,1763014248472,-151.0,0.00037015,14]
[393806537,1763014248481,-332.0,0.00037015,14]
[393806538,1763014248491,-191.63610372,0.00037015,14]
[393806539,1763014248499,-332.0,0.00037015,14]
[393806540,1763014248509,-332.0,0.00037015,14]
[393806541,1763014248518,-332.0,0.00037015,14]
[393806542,1763014248528,-332.0,0.00037015,14]
[393806543,1763014248537,-332.0,0.00037015,14]
[393806544,1763014248547,-166.0,0.00037015,14]
[393806545,1763014248556,-332.0,0.00037015,14]
[393806546,1763014248566,-166.0,0.00037015,14]
[393806547,1763014248576,-332.0,0.00037015,14]
[393806548,1763014248585,-166.0,0.00037015,14]
[393806549,1763014248595,-332.0,0.00037015,14]
[393806550,1763014248604,-332.0,0.00037015,14]
[393806551,1763014248614,-332.0,0.00037015,14]
[393806552,1763014248624,-332.0,0.00037015,14]
[393806553,1763014248633,-332.0,0.00037015,14]
[393806554,1763014248642,-332.0,0.00037015,14]
[393806555,1763014248651,-332.0,0.00037015,14]
[393806556,1763014248660,-332.0,0.00037015,14]
[393806557,1763014248670,-332.0,0.00037015,14]
[393806558,1763014248679,-332.0,0.00037015,14]
[393806559,1763014248689,-332.0,0.00037015,14]
[393806560,1763014248699,-332.0,0.00037015,14]
[393806561,1763014248710,-332.0,0.00037015,14]
[393806562,1763014248721,-332.0,0.00037015,14]
[393806563,1763014248731,-332.0,0.00037015,14]
[393806564,1763014248740,-332.0,0.00037015,14]
[393806565,1763014248749,-332.0,0.00037015,14]
[393806566,1763014248759,-332.0,0.00037015,14]
[393806567,1763014248768,-332.0,0.00037015,14]
[393806568,1763014248778,-332.0,0.00037015,14]
[393806569,1763014248788,-332.0,0.00037015,14]
[393806570,1763014248797,-332.0,0.00037015,14]
[393806571,1763014248807,-332.0,0.00037015,14]
[393806572,1763014248816,-332.0,0.00037015,14]
[393806573,1763014248826,-332.0,0.00037015,14]
[393806574,1763014248835,-332.0,0.00037015,14]
[393806575,1763014248844,-332.0,0.00037015,14]
[393806576,1763014248854,-257.67630315,0.00037015,14]
[393806577,1763014248863,-173.98146929,0.00037015,14]
[393806578,1763014248873,-151.0,0.00037015,14]
[393806579,1763014248883,-166.0,0.00037015,14]
[393806580,1763014248892,-151.0,0.00037015,14]
[393806581,1763014248901,-254.14550374,0.00037015,14]
[393806582,1763014248911,-177.25876765,0.00037015,14]
[393806583,1763014248920,-151.0,0.00037015,14]
[393806584,1763014248929,-151.0,0.00037015,14]
[393806585,1763014248939,-151.0,0.00037015,14]
[393806586,1763014248948,-151.0,0.00037015,14]
[393806587,1763014248958,-151.0,0.00037015,14]
[393806588,1763014248971,-174.34657869,0.00037015,14]
[393806589,1763014248980,-151.0,0.00037015,14]
[393806590,1763014248990,-151.0,0.00037015,14]
[393806591,1763014249000,-151.0,0.00037015,14]
[393806592,1763014249011,-215.55692712,0.00037015,14]
[393806593,1763014249020,-197.67012425,0.00037061,3]
[393806594,1763014249029,-1278.616953,0.00037061,10]
[393806595,1763014249039,-5000.0,0.00037061,20]
[393806596,1763014249053,-5000.0,0.00037061,20]
[393806597,1763014249063,-2000.0,0.00037061,20]
[393806598,1763014249074,-508.33484859,0.00037073,5]
[393806599,1763014249083,-198.78268007,0.00037073,5]
[393806600,1763014249093,-503.90230592,0.00037073,5]
[393806601,1763014249103,-529.47556128,0.00037073,5]
[393806602,1763014249112,-510.58559382,0.00037073,5]
[393806603,1763014249122,-500.99153154,0.00037073,5]
[393806604,1763014249131,-500.0,0.00037085,30]
[393806605,1763014249140,-4423.0,0.00037175,2]
[393806606,1763014249149,-500.0,0.00037359,30]
[393806607,1763014249159,-161.0,0.0003754,120]
[393806608,1763014249168,-168.0,0.00037584,2]
[393806609,1763014249305,-500.0,0.00037633,30]
[393806610,1763014249314,-168.0,0.00037646,2]
[393806611,1763014249324,-500.0,0.00037907,30]
[393806612,1763014249333,-500.0,0.00038181,30]
[393806613,1763014249343,-151.0,0.00038356,120]
[393806614,1763014249352,-151.0,0.00038356,120]
[393806615,1763014249362,-151.0,0.00038356,120]
[393806616,1763014249372,-151.0,0.00038356,120]
[393806617,1763014249382,-151.0,0.00038356,120]
[393806618,1763014249392,-151.0,0.00038356,120]
[393806619,1763014249402,-151.0,0.00038356,120]
[393806620,1763014249412,-151.0,0.00038356,120]
[393806621,1763014249422,-151.0,0.00038356,120]
[393806622,1763014249432,-151.0,0.00038356,120]
[393806623,1763014249443,-151.0,0.00038356,120]
[393806624,1763014249452,-151.0,0.00038356,120]
[393806625,1763014249462,-151.0,0.00038356,120]
[393806626,1763014249471,-151.0,0.00038356,120]
[393806627,1763014249481,-151.0,0.00038356,120]
[393806628,1763014249492,-151.0,0.00038356,120]
[393806629,1763014249501,-183.699531,0.00038356,120]
[393806630,1763014249511,-80.95296325,0.000384,5]
[393806631,1763014249545,-69.99960297,0.000384,5]
[393806632,1763014249554,-500.0,0.00038455,30]
[393806633,1763014249564,-987.0,0.00038522,2]
[393806634,1763014249573,-581.31,0.00038522,2]
[393806635,1763014249582,-168.0,0.00038552,2]
[393806636,1763014249591,-3297.58348335,0.00038714,2]
[393806637,1763014249601,-500.0,0.00038728,30]
[393806638,1763014249610,-168.0,0.00038898,2]
[393806639,1763014249619,-720.0,0.00038985,90]
[393806640,1763014249628,-500.0,0.00039002,30]
[393806641,1763014249638,-5000.0,0.00039015,4]
[393806642,1763014249648,-500.0,0.00039276,30]
[393806643,1763014249657,-168.0,0.00039338,2]
[393806644,1763014249667,-161.0,0.00039417,120]
[393806645,1763014249677,-154.3842532,0.00039453,30]
[393806646,1763014249687,-500.0,0.0003955,30]
[393806647,1763014249697,-2000.0,0.00039596,21]
[393806648,1763014249707,-152.92,0.000396,7]
[393806649,1763014249717,-168.0,0.00039618,2]
[393806650,1763014249727,-500.0,0.00039824,30]
[393806651,1763014249736,-1510.14801277,0.000399,60]
[393806652,1763014249745,-500.0,0.00040098,30]
[393806653,1763014249754,-500.0,0.00040372,30]
[393806654,1763014249765,-500.0,0.00040646,30]
[393806655,1763014249775,-161.0,0.00041388,120]
[393806656,1763014249784,-163.20034776,0.0004147,2]
[393806657,1763014249793,-442.15135572,0.00041908,2]
[393806658,1763014249803,-275.97066243,0.00042,120]
[393806659,1763014249812,-162.47324899,0.00042274,30]
[393806660,1763014249821,-162.47324899,0.00042548,30]
[393806661,1763014249831,-151.0,0.000426,10]
[393806662,1763014249840,-300.0,0.0004263,60]
[393806663,1763014249849,-162.333479,0.00042708,2]
[393806664,1763014249858,-162.47324899,0.00042795,30]
[393806665,1763014249867,-525.32,0.000428,120]
[393806666,1763014249876,-864.0,0.00042884,90]
[393806667,1763014249885,-1000.0,0.00043,120]
[393806668,1763014249896,-162.47324899,0.00043041,30]
[393806669,1763014249905,-162.47324899,0.00043288,30]
[393806670,1763014249915,-161.0,0.00043457,120]
[393806671,1763014249924,-162.47324899,0.00043534,30]
[393806672,1763014249934,-153.0,0.00043596,30]
[393806673,1763014249944,-1204.4672465,0.00043596,30]
[393806674,1763014249954,-154.024012,0.00043596,30]
[393806675,1763014249967,-303.3075285,0.00043596,30]
[393806676,1763014249978,-397.5673823,0.00043596,30]
[393806677,1763014249989,-153.0,0.00043596,30]
[393806678,1763014249999,-153.0,0.00043596,30]
[393806679,1763014250009,-153.0,0.00043596,30]
[393806680,1763014250019,-2000.0,0.00043677,21]
[393806681,1763014250028,-162.47324899,0.00043781,30]
[393806682,1763014250039,-151.0,0.000438,16]
[393806683,1763014250052,-4449.87,0.000439,14]
[393806684,1763014250062,-20000.0,0.00044,120]
[393806685,1763014250072,-162.47324899,0.00044027,30]
[393806686,1763014250082,-151.0,0.000442,14]
[393806687,1763014250093,-162.47324899,0.00044274,30]
[393806688,1763014250105,-153.0,0.00044418,30]
[393806689,1763014250114,-153.0,0.00044418,30]
[393806690,1763014250124,-153.0,0.00044418,30]
[393806691,1763014250134,-153.0,0.00044418,30]
[393806692,1763014250143,-153.0,0.00044418,30]
[393806693,1763014250152,-153.0,0.00044418,30]
[393806694,1763014250162,-153.0,0.00044418,30]
[393806695,1763014250171,-153.0,0.00044418,30]
[393806696,1763014250182,-153.0,0.00044418,30]
[393806697,1763014250202,-153.0,0.00044418,30]
[393806698,1763014250215,-153.0,0.00044418,30]
[393806699,1763014250225,-153.0,0.00044418,30]
[393806700,1763014250234,-153.0,0.00044418,30]
[393806701,1763014250246,-153.0,0.00044418,30]
[393806702,1763014250256,-153.0,0.00044418,30]
[393806703,1763014250267,-153.0,0.00044418,30]
[393806704,1763014250277,-153.0,0.00044418,30]
[393806705,1763014250287,-153.0,0.00044418,30]
[393806706,1763014250296,-153.0,0.00044418,30]
[393806707,1763014250306,-153.0,0.00044418,30]
[393806708,1763014250316,-153.0,0.00044418,30]
[393806709,1763014250326,-290.0034262,0.00044418,30]
[393806710,1763014250336,-162.47324899,0.00044548,30]
[393806711,1763014250346,-151.0,0.000449,14]
[393806712,1763014250356,-501.44271015,0.00044973,10]
[393806713,1763014250366,-56966.2724122,0.00045,120]
[393806714,1763014250376,-1000.0,0.00045,120]
[393806715,1763014250386,-152.92,0.000454,14]
[393806716,1763014250396,-161.0,0.0004563,120]
[393806717,1763014250406,-151.0,0.000458,29]
[393806718,1763014250416,-1000.0,0.00046,120]
[393806719,1763014250426,-49064.61046206,0.00046,120]
[393806720,1763014251553,-150.5,0.00034314,120]
[393806721,1763014251562,-328.9797356,0.00044473,30]
[393806722,1763014251572,-602.0216968,0.00044473,30]
[393806723,1763014251581,-123644.38953794,0.00046,120]
[393806724,1763014251592,-4000.0,0.00046,20]
[393806725,1763014251601,-4000.0,0.00046,20]
[393806726,1763014251611,-4000.0,0.00046,20]
[393806727,1763014251619,-4000.0,0.00046,20]
[393806728,1763014251629,-4000.0,0.00046,20]
[393806729,1763014251638,-4000.0,0.00046,20]
[393806730,1763014251647,-4000.0,0.00046,20]
[393806731,1763014251656,-4000.0,0.00046,20]
[393806732,1763014251666,-4000.0,0.00046,20]
[393806733,1763014251675,-4000.0,0.00046,20]
[393806734,1763014251685,-4000.0,0.00046,20]
[393806735,1763014251694,-4000.0,0.00046,20]
[393806736,1763014251704,-4000.0,0.00046,20]
[393806737,1763014251713,-4000.0,0.00046,20]
[393806738,1763014251723,-4000.0,0.00046,20]
[393806739,1763014251732,-4000.0,0.00046,20]
[393806740,1763014251742,-4000.0,0.00046,20]
[393806741,1763014251751,-206619.67519573,0.00047,10]
[393806926,1763014703476,235.6752402,0.00032876,120]
[393806970,1763014807235,179.73,0.00037078,30]
[393807073,1763014927983,169.7406415,0.00017318,2]
[393807178,1763015217128,-282.19342221,0.00028865,2]
[393807219,1763015305752,21479.97145059,0.00017,2]
[393807221,1763015308263,598.91666715,0.00015,2]
[393807225,1763015314146,214.35310188,0.00016,2]
[393807227,1763015317226,2444.28680419,0.0001,2]
[393807257,1763015432582,-255.2,0.0002745,2]
[393807259,1763015432594,-283.32353234,0.0002745,2]
[393807261,1763015432642,-1046.39845533,0.0002745,2]
[393807262,1763015432654,-3415.07801233,0.0002745,2]
[393807263,1763015432663,-769.34860785,0.00027727,2]
[393807273,1763015440586,-1097.26320787,0.00027727,2]
[393807274,1763015440646,-2774.39926111,0.00027727,2]
[393807275,1763015440658,-358.98892317,0.00027727,2]
[393807276,1763015440668,-5000.0,0.00028007,2]
[393807277,1763015440677,-254.24040385,0.00028721,22]
[393807278,1763015440687,-500.0,0.00030149,60]
[393807279,1763015440697,-150.0,0.00030833,2]
[393807280,1763015440706,-600.0,0.00031414,30]
[393807281,1763015440715,-150.0,0.00032301,2]
[393807282,1763015440724,-157.7400875,0.000332,117]
[393807283,1763015440734,-150.0,0.00033769,2]
[393807284,1763015440743,-154.96,0.00034321,60]
[393807285,1763015440752,-500.0,0.00034328,2]
[393807286,1763015440761,-168.0,0.00034328,2]
[393807287,1763015440770,-154.96,0.00034421,60]
[393807288,1763015440779,-258.03564332,0.0003449,2]
[393807289,1763015440789,-350.7115568,0.00034511,2]
[393807290,1763015440800,-409.28017256,0.00034511,2]
[393807291,1763015440813,-531.71,0.00034511,2]
[393807302,1763015443881,-31.35482469,0.00024953,2]
[393807322,1763015446668,-1476.2425396,0.00024953,2]
[393807323,1763015446684,-3492.40263571,0.00024953,2]
[393807324,1763015446693,-2813.72336428,0.00034511,2]
[393807325,1763015446793,-355.3,0.00034511,2]
[393807343,1763015495078,300.0,0.00025196,20]
[393807466,1763016098613,604.7833265,0.00032877,120]
[393807507,1763016267294,166.066822,0.00013699,2]
[393807511,1763016425712,1886.25,0.00032877,120]
[393807542,1763016567123,-1113.76893254,0.0002128,2]
[393807543,1763016567144,-4785.1228049,0.0002138,2]
[393807617,1763016637840,-5000.0,0.00020744,2]
[393807618,1763016637849,-173.0,0.00020954,2]
[393807619,1763016637861,-4827.0,0.00020954,2]
[393807620,1763016637870,-126.20815841,0.00021165,2]
[393807637,1763016640049,-1073.79184159,0.00021165,2]
[393807638,1763016640058,-5000.0,0.00021166,2]
[393807639,1763016640068,-300.0,0.00021379,2]
[393807640,1763016640077,-213.17073821,0.00021496,3]
[393807641,1763016640087,-183.27517317,0.0002227,2]
[393807642,1763016640097,-166.066822,0.00022505,2]
[393807643,1763016640108,-2812.0,0.00024,2]
[393807644,1763016640117,-206.45921963,0.0003,2]
[393807645,1763016640126,-206.45921963,0.0003,2]
[393807646,1763016640136,-1527.30504002,0.0003,2]
[393807647,1763016640146,-585.1,0.00030681,60]
[393807648,1763016640155,-206.45921963,0.00030743,2]
[393807649,1763016640165,-341.1060013,0.00030843,2]
[393807650,1763016640174,-166.066822,0.00031311,2]
[393807651,1763016640184,-560.745887,0.00031998,2]
[393807652,1763016640193,-585.1,0.00032895,60]
[393807653,1763016640203,-266.334832,0.00034288,2]
[393807654,1763016640212,-177.30563679,0.00034299,2]
[393807655,1763016640232,-1233.62553824,0.00034299,2]
[393807656,1763016640246,-500.0,0.00034342,7]
[393807657,1763016640256,-500.0,0.00034342,7]
[393807658,1763016640266,-500.0,0.00034342,7]
[393807659,1763016640276,-500.0,0.00034342,7]
[393807660,1763016640287,-500.0,0.00034342,7]
[393807661,1763016640297,-500.0,0.00034342,7]
[393807662,1763016640306,-500.0,0.00034342,7]
[393807663,1763016640316,-500.0,0.00034342,7]
[393807664,1763016640326,-500.0,0.00034342,7]
[393807665,1763016640335,-500.0,0.00034342,7]
[393807666,1763016640345,-500.0,0.00034342,7]
[393807667,1763016640355,-500.0,0.00034342,7]
[393807668,1763016640364,-500.0,0.00034342,7]
[393807669,1763016640374,-500.0,0.00034342,7]
[393807670,1763016640383,-500.0,0.00034342,7]
[393807671,1763016640393,-500.0,0.00034342,7]
[393807672,1763016640403,-500.0,0.00034342,7]
[393807673,1763016640412,-375.49035162,0.00034342,7]
[393807674,1763016640421,-500.0,0.00034342,7]
[393807675,1763016640430,-500.0,0.00034342,7]
[393807676,1763016640440,-500.0,0.00034342,7]
[393807677,1763016640449,-500.0,0.00034342,7]
[393807678,1763016640459,-500.0,0.00034342,7]
[393807679,1763016640468,-500.0,0.00034342,7]
[393807680,1763016640478,-500.0,0.00034342,7]
[393807681,1763016640487,-500.0,0.00034342,7]
[393807682,1763016640497,-500.0,0.00034342,7]
[393807683,1763016640508,-500.0,0.00034342,7]
[393807684,1763016640518,-500.0,0.00034342,7]
[393807685,1763016640527,-500.0,0.00034342,7]
[393807686,1763016640536,-500.0,0.00034342,7]
[393807687,1763016640546,-500.0,0.00034342,7]
[393807688,1763016640556,-500.0,0.00034342,7]
[393807689,1763016640566,-500.0,0.00034342,7]
[393807690,1763016640575,-500.0,0.00034342,7]
[393807691,1763016640584,-500.0,0.00034342,7]
[393807692,1763016640594,-500.0,0.00034342,7]
[393807693,1763016640603,-500.0,0.00034342,7]
[393807694,1763016640612,-500.0,0.00034342,7]
[393807695,1763016640622,-500.0,0.00034342,7]
[393807696,1763016640631,-500.0,0.00034342,7]
[393807697,1763016640641,-500.0,0.00034342,7]
[393807698,1763016640650,-500.0,0.00034342,7]
[393807699,1763016640659,-492.86513311,0.00034342,7]
[393807700,1763016640669,-240.60748982,0.00034342,7]
[393807701,1763016640679,-500.0,0.00034342,7]
[393807702,1763016640688,-500.0,0.00034342,7]
[393807703,1763016640698,-500.0,0.00034342,7]
[393807704,1763016640708,-500.0,0.00034342,7]
[393807705,1763016640719,-500.0,0.00034342,7]
[393807706,1763016640734,-500.0,0.00034342,7]
[393807707,1763016640744,-500.0,0.00034342,7]
[393807708,1763016640755,-500.0,0.00034342,7]
[393807709,1763016640764,-500.0,0.00034342,7]
[393807710,1763016640774,-26.60503424,0.00034342,7]
[393807711,1763016640798,-450.70762763,0.00034342,7]
[393807712,1763016640811,-22.68733813,0.00034342,7]
[393807713,1763016640821,-327.39695907,0.00034342,7]
[393807728,1763016642938,-160.0,0.00023963,2]
[393807729,1763016642948,-146.6584301,0.00034342,7]
[393824938,1763016979942,25000.0,0.00037076,120]
[393824939,1763017008205,500.0,3.4e-05,120]
[393824940,1763017011976,782.44,0.00032877,120]
[393824941,1763017014193,15000.0,0.00037076,120]
[393825012,1763017069851,362.42,0.00037076,120]
[393825013,1763017081556,8100.0,0.00037076,120]
[393825039,1763017593386,990.0,0.00032877,120]
[393825045,1763017782247,898.58,0.00037087,30]
[393825081,1763017831919,-251.25739324,0.00020643,2]
[393825086,1763017831956,-17.85597209,0.00020643,2]
[393825088,1763017831965,-150.0,0.0002065,2]
[393825090,1763017831974,-157.46832248,0.000207,2]
[393825092,1763017831984,-177.0,0.0002265,2]
[393825094,1763017831993,-204.0,0.0002465,2]
[393825096,1763017832004,-231.0,0.0002665,2]
[393825098,1763017832013,-36.24570543,0.00027061,2]
[393825100,1763017832024,-364.03817461,0.00027061,2]
[393825102,1763017832034,-159.17,0.000285,20]
[393825104,1763017832043,-748.10563813,0.00029807,2]
[393825106,1763017832054,-3632.44650947,0.00029807,2]
[393825108,1763017832064,-269.11336533,0.00030101,2]
[393825110,1763017832077,-150.0,0.0003097,2]
[393825112,1763017832086,-300.0,0.0003205,2]
[393825115,1763017832095,-352.27760058,0.00032051,2]
[393825118,1763017832105,-168.41923591,0.000332,117]
[393825119,1763017832114,-2248.36196207,0.00033716,2]
[393825120,1763017832123,-367.08148651,0.00033738,2]
[393825122,1763017832132,-3746.45896341,0.00033858,2]
[393825125,1763017832143,-3746.45896341,0.00033991,2]
[393825127,1763017832153,-2248.36196207,0.00034106,2]
[393825129,1763017832162,-1942.37725576,0.00034237,2]
[393825131,1763017832171,-849.1884259,0.00034272,2]
[393825132,1763017832181,-500.0,0.00034336,7]
[393825133,1763017832191,-500.0,0.00034336,7]
[393825134,1763017832200,-500.0,0.00034336,7]
[393825135,1763017832210,-500.0,0.00034336,7]
[393825136,1763017832224,-539.67750959,0.00034336,7]
[393825137,1763017832233,-500.0,0.00034336,7]
[393825138,1763017832242,-500.0,0.00034336,7]
[393825139,1763017832253,-510.96488209,0.00034336,7]
[393825140,1763017832262,-500.0,0.00034336,7]
[393825141,1763017832272,-423.26343367,0.00034336,7]
[393825142,1763017832281,-500.0,0.00034336,7]
[393825143,1763017832291,-500.0,0.00034336,7]
[393825144,1763017832300,-500.0,0.00034336,7]
[393825145,1763017832309,-323.17842976,0.00034336,7]
[393825146,1763017832318,-500.0,0.00034336,7]
[393825147,1763017832327,-500.0,0.00034336,7]
[393825148,1763017832336,-500.0,0.00034336,7]
[393825149,1763017832345,-500.0,0.00034336,7]
[393825150,1763017832355,-500.0,0.00034336,7]
[393825151,1763017832364,-500.0,0.00034336,7]
[393825152,1763017832373,-500.0,0.00034336,7]
[393825153,1763017832382,-500.0,0.00034336,7]
[393825154,1763017832391,-500.0,0.00034336,7]
[393825155,1763017832400,-357.4903743,0.00034336,7]
[393825156,1763017832410,-133.46299479,0.00034336,7]
[393825157,1763017832434,-366.53700521,0.00034336,7]
[393825158,1763017832443,-133.46299479,0.00034336,7]
[393825159,1763017832454,-366.53700521,0.00034336,7]
[393825160,1763017832463,-500.0,0.00034336,7]
[393825161,1763017832472,-500.0,0.00034336,7]
[393825162,1763017832482,-500.0,0.00034336,7]
[393825163,1763017832491,-500.0,0.00034336,7]
[393825164,1763017832500,-500.0,0.00034336,7]
[393825165,1763017832520,-500.0,0.00034336,7]
[393825166,1763017832531,-500.0,0.00034336,7]
[393825167,1763017832540,-500.0,0.00034336,7]
[393825168,1763017832550,-500.0,0.00034336,7]
[393825169,1763017832560,-522.98727867,0.00034336,7]
[393825170,1763017832570,-500.0,0.00034336,7]
[393825171,1763017832580,-500.0,0.00034336,7]
[393825172,1763017832590,-500.0,0.00034336,7]
[393825173,1763017832601,-500.0,0.00034336,7]
[393825174,1763017832611,-500.0,0.00034336,7]
[393825175,1763017832621,-500.0,0.00034336,7]
[393825176,1763017832631,-500.0,0.00034336,7]
[393825177,1763017832641,-500.0,0.00034336,7]
[393825178,1763017832650,-500.0,0.00034336,7]
[393825179,1763017832660,-500.0,0.00034336,7]
[393825180,1763017832670,-500.0,0.00034336,7]
[393825181,1763017832679,-500.0,0.00034336,7]
[393825182,1763017832689,-500.0,0.00034336,7]
[393825183,1763017832699,-500.0,0.00034336,7]
[393825184,1763017832708,-500.0,0.00034336,7]
[393825185,1763017832718,-500.0,0.00034336,7]
[393825186,1763017832728,-500.0,0.00034336,7]
[393825187,1763017832737,-500.0,0.00034336,7]
[393825188,1763017832747,-500.0,0.00034336,7]
[393825189,1763017832757,-500.0,0.00034336,7]
[393825190,1763017832767,-500.0,0.00034336,7]
[393825191,1763017832776,-500.0,0.00034336,7]
[393825192,1763017832786,-500.0,0.00034336,7]
[393825193,1763017832795,-500.0,0.00034336,7]
[393825194,1763017832805,-500.0,0.00034336,7]
[393825195,1763017832814,-500.0,0.00034336,7]
[393825196,1763017832824,-500.0,0.00034336,7]
[393825197,1763017832834,-500.0,0.00034336,7]
[393825198,1763017832844,-500.0,0.00034336,7]
[393825199,1763017832854,-435.9181593,0.00034336,7]
[393825200,1763017832863,-500.0,0.00034336,7]
[393825201,1763017832873,-500.0,0.00034336,7]
[393825202,1763017832883,-500.0,0.00034336,7]
[393825203,1763017832892,-500.0,0.00034336,7]
[393825204,1763017832902,-500.0,0.00034336,7]
[393825205,1763017832912,-500.0,0.00034336,7]
[393825206,1763017832921,-500.0,0.00034336,7]
[393825207,1763017832930,-500.0,0.00034336,7]
[393825208,1763017832940,-500.0,0.00034336,7]
[393825209,1763017832950,-500.0,0.00034336,7]
[393825210,1763017832960,-500.0,0.00034336,7]
[393825211,1763017832970,-500.0,0.00034336,7]
[393825212,1763017832980,-500.0,0.00034336,7]
[393825213,1763017832990,-167.41336872,0.00034336,7]
[393825214,1763017833001,-500.0,0.00034336,7]
[393825215,1763017833011,-500.0,0.00034336,7]
[393825216,1763017833020,-500.0,0.00034336,7]
[393825217,1763017833030,-500.0,0.00034336,7]
[393825218,1763017833040,-500.0,0.00034336,7]
[393825219,1763017833050,-200.0,0.00034336,7]
[393825220,1763017833061,-500.0,0.00034336,7]
[393825221,1763017833073,-151.4,0.00034338,60]
[393825222,1763017833084,-170.16073289,0.00034338,38]
[393825223,1763017833094,-400.28388004,0.00034341,7]
[393825224,1763017833103,-209.40437684,0.00034351,2]
[393825225,1763017833114,-169.83,0.00034352,120]
[393825226,1763017833124,-268.49,0.00034362,3]
[393825227,1763017833133,-805.52,0.00034362,3]
[393825228,1763017833146,-150.5,0.00034362,120]
[393825229,1763017833155,-500.0,0.00034371,7]
[393825230,1763017833165,-326.96210352,0.00034371,7]
[393825231,1763017833175,-248.71658404,0.00034371,7]
[393825232,1763017833185,-500.0,0.00034371,7]
[393825233,1763017833195,-500.0,0.00034371,7]
[393825234,1763017833204,-251.82291929,0.00034371,7]